fUST/lending_fUST_20260304
["ID","MTS","AMOUNT","RATE_DAILY","PERIOD"]
[407659307,1772620245010,-500.0,0.00011232,2]
[407659308,1772620245019,-500.0,0.00011232,2]
[407659309,1772620245029,-350.72605845,0.00011232,2]
[407659310,1772620245039,-500.0,0.00011232,2]
[407659311,1772620245048,-552.13,0.00011232,2]
[407659312,1772620245057,-578.9,0.00011232,2]
[407659313,1772620245067,-1265.8,0.00011232,2]
[407659314,1772620245076,-500.0,0.00011232,2]
[407659315,1772620245086,-751.02,0.00011232,2]
[407659316,1772620245096,-1282.89,0.00011232,2]
[407659317,1772620245105,-500.0,0.00011232,2]
[407659318,1772620245114,-500.0,0.00011232,2]
[407659319,1772620245124,-500.0,0.00011232,2]
[407659320,1772620245133,-500.0,0.00011232,2]
[407659321,1772620245142,-500.0,0.00011232,2]
[407659322,1772620245151,-605.85,0.00011232,2]
[407659323,1772620245341,-500.0,0.00011232,2]
[407659324,1772620245378,-500.0,0.00011232,2]
[407659325,1772620245387,-500.0,0.00011232,2]
[407659326,1772620245397,-500.0,0.00011232,2]
[407659327,1772620245407,-500.0,0.00011232,2]
[407659328,1772620245417,-1331.28,0.00011232,2]
[407659329,1772620245426,-872.0,0.00011232,2]
[407659330,1772620245436,-500.0,0.00011232,2]
[407659331,1772620245445,-500.0,0.00011232,2]
[407659332,1772620245455,-500.0,0.00011232,2]
[407659333,1772620245465,-709.9,0.00011232,2]
[407659334,1772620245474,-376.31435084,0.00011232,2]
[407659335,1772620245483,-500.0,0.00011232,2]
[407659336,1772620245494,-500.0,0.00011232,2]
[407659337,1772620245503,-24169.12243376,0.00011232,2]
[407659338,1772620245513,-810.14,0.00011232,2]
[407659339,1772620245523,-500.0,0.00011232,2]
[407659340,1772620245532,-500.0,0.00011232,2]
[407659341,1772620245541,-500.0,0.00011232,2]
[407659342,1772620245551,-500.0,0.00011232,2]
[407659343,1772620245560,-500.0,0.00011232,2]
[407659344,1772620245569,-500.0,0.00011232,2]
[407659345,1772620245578,-544.3,0.00011232,2]
[407659346,1772620245588,-500.0,0.00011232,2]
[407659348,1772620245597,-201.01181296,0.00011232,2]
[407659349,1772620245607,-500.0,0.00011232,2]
[407659350,1772620245616,-500.0,0.00011232,2]
[407659351,1772620245626,-500.0,0.00011232,2]
[407659352,1772620245637,-500.0,0.00011232,2]
[407659353,1772620245649,-545.39,0.00011232,2]
[407659355,1772620245658,-500.0,0.00011232,2]
[407659356,1772620245668,-500.0,0.00011232,2]
[407659357,1772620245678,-1692.54,0.00011232,2]
[407659358,1772620245689,-500.0,0.00011232,2]
[407659359,1772620245699,-1964.86,0.00011232,2]
[407659360,1772620245708,-500.0,0.00011232,2]
[407659361,1772620245719,-582.94,0.00011232,2]
[407659362,1772620245728,-674.05,0.00011232,2]
[407659363,1772620245738,-500.0,0.00011232,2]
[407659364,1772620245747,-500.0,0.00011232,2]
[407659365,1772620245757,-1414.38,0.00011232,2]
[407659367,1772620245767,-500.0,0.00011232,2]
[407659368,1772620245777,-1407.78,0.00011232,2]
[407659369,1772620245786,-628.79991847,0.00011232,2]
[407659370,1772620245795,-500.0,0.00011232,2]
[407659371,1772620245805,-500.0,0.00011232,2]
[407659372,1772620245814,-500.0,0.00011232,2]
[407659373,1772620245824,-500.0,0.00011232,2]
[407659374,1772620245834,-500.0,0.00011232,2]
[407659375,1772620245843,-522.36,0.00011232,2]
[407659376,1772620245854,-1230.03,0.00011232,2]
[407659377,1772620245864,-1224.1,0.00011232,2]
[407659378,1772620245873,-1104.99,0.00011232,2]
[407659379,1772620245884,-500.0,0.00011232,2]
[407659380,1772620245894,-500.0,0.00011232,2]
[407659381,1772620245903,-500.0,0.00011232,2]
[407659382,1772620245913,-615.87,0.00011232,2]
[407659383,1772620245922,-1770.15,0.00011232,2]
[407659384,1772620245932,-500.0,0.00011232,2]
[407659385,1772620245941,-875.58,0.00011232,2]
[407659386,1772620245951,-597.96,0.00011232,2]
[407659387,1772620245960,-1088.98,0.00011232,2]
[407659388,1772620245970,-500.0,0.00011232,2]
[407659390,1772620245980,-500.0,0.00011232,2]
[407659391,1772620245990,-538.72,0.00011232,2]
[407659392,1772620246001,-500.0,0.00011232,2]
[407659393,1772620246011,-722.35,0.00011232,2]
[407659394,1772620246020,-500.0,0.00011232,2]
[407659395,1772620246030,-500.0,0.00011232,2]
[407659396,1772620246039,-500.0,0.00011232,2]
[407659397,1772620246049,-500.0,0.00011232,2]
[407659398,1772620246058,-646.21,0.00011232,2]
[407659399,1772620246068,-993.3,0.00011232,2]
[407659400,1772620246078,-500.0,0.00011232,2]
[407659401,1772620246087,-500.0,0.00011232,2]
[407659402,1772620246097,-500.0,0.00011232,2]
[407659403,1772620246107,-500.0,0.00011232,2]
[407659404,1772620246116,-757.5,0.00011232,2]
[407659405,1772620246126,-500.0,0.00011232,2]
[407659406,1772620246136,-500.0,0.00011232,2]
[407659407,1772620246145,-509.86,0.00011232,2]
[407659408,1772620246155,-500.0,0.00011232,2]
[407659409,1772620246164,-509.28,0.00011232,2]
[407659410,1772620246173,-500.0,0.00011232,2]
[407659411,1772620246183,-500.0,0.00011232,2]
[407659412,1772620246192,-513.94,0.00011232,2]
[407659413,1772620246201,-500.0,0.00011232,2]
[407659414,1772620246211,-500.0,0.00011232,2]
[407659415,1772620246220,-500.0,0.00011232,2]
[407659416,1772620246229,-500.0,0.00011232,2]
[407659417,1772620246239,-1219.3,0.00011232,2]
[407659418,1772620246248,-1243.21,0.00011232,2]
[407659419,1772620246259,-1500.27,0.00011232,2]
[407659420,1772620246270,-643.79,0.00011232,2]
[407659421,1772620246279,-500.0,0.00011232,2]
[407659422,1772620246288,-576.43,0.00011232,2]
[407659423,1772620246297,-792.29,0.00011232,2]
[407659424,1772620246307,-500.0,0.00011232,2]
[407659425,1772620246316,-1206.08,0.00011232,2]
[407659426,1772620246325,-500.0,0.00011232,2]
[407659427,1772620246334,-500.0,0.00011232,2]
[407659428,1772620246344,-500.0,0.00011232,2]
[407659429,1772620246353,-500.0,0.00011232,2]
[407659430,1772620246363,-500.0,0.00011232,2]
[407659431,1772620246373,-500.0,0.00011232,2]
[407659432,1772620246382,-500.0,0.00011232,2]
[407659433,1772620246392,-500.0,0.00011232,2]
[407659434,1772620246401,-500.0,0.00011232,2]
[407659435,1772620246411,-500.0,0.00011232,2]
[407659436,1772620246421,-500.0,0.00011232,2]
[407659437,1772620246441,-500.0,0.00011232,2]
[407659438,1772620246457,-809.89,0.00011232,2]
[407659439,1772620246467,-500.0,0.00011232,2]
[407659440,1772620246477,-500.0,0.00011232,2]
[407659441,1772620246487,-500.0,0.00011232,2]
[407659442,1772620246496,-500.0,0.00011232,2]
[407659443,1772620246506,-500.0,0.00011232,2]
[407659444,1772620246516,-500.0,0.00011232,2]
[407659445,1772620246526,-4321.67,0.00011232,2]
[407659446,1772620246535,-664.25,0.00011232,2]
[407659447,1772620246545,-500.0,0.00011232,2]
[407659448,1772620246555,-347.34185124,0.00011232,2]
[407659449,1772620246564,-764.63,0.00011232,2]
[407659450,1772620246574,-541.17,0.00011232,2]
[407659451,1772620246583,-1045.75,0.00011232,2]
[407659452,1772620246593,-883.91,0.00011232,2]
[407659453,1772620246603,-791.62,0.00011232,2]
[407659454,1772620246612,-1426.21,0.00011232,2]
[407659455,1772620246622,-1929.73,0.00011232,2]
[407659456,1772620246633,-897.71,0.00011232,2]
[407659457,1772620246645,-782.4,0.00011232,2]
[407659458,1772620246655,-500.0,0.00011232,2]
[407659459,1772620246664,-500.0,0.00011232,2]
[407659460,1772620246675,-500.0,0.00011232,2]
[407659461,1772620246684,-783.66,0.00011232,2]
[407659462,1772620246694,-541.67,0.00011232,2]
[407659463,1772620246704,-1422.09,0.00011232,2]
[407659464,1772620246714,-681.07,0.00011232,2]
[407659465,1772620246724,-537.99,0.00011232,2]
[407659466,1772620246734,-500.0,0.00011232,2]
[407659467,1772620246744,-1012.45,0.00011232,2]
[407659468,1772620246753,-500.0,0.00011232,2]
[407659469,1772620246762,-500.0,0.00011232,2]
[407659470,1772620246772,-500.0,0.00011232,2]
[407659471,1772620246781,-1704.1,0.00011232,2]
[407659472,1772620246791,-1790.16,0.00011232,2]
[407659473,1772620246801,-2913.75,0.00011232,2]
[407659474,1772620246811,-1325.96,0.00011232,2]
[407659475,1772620246821,-500.0,0.00011232,2]
[407659476,1772620246831,-500.0,0.00011232,2]
[407659477,1772620246840,-500.0,0.00011232,2]
[407659478,1772620246850,-500.0,0.00011232,2]
[407659479,1772620246859,-500.0,0.00011232,2]
[407659480,1772620246869,-768.49,0.00011232,2]
[407659481,1772620246879,-2509.66,0.00011232,2]
[407659482,1772620246889,-1111.4,0.00011232,2]
[407659483,1772620246899,-687.5,0.00011232,2]
[407659484,1772620246908,-946.18,0.00011232,2]
[407659485,1772620246918,-3470.62,0.00011232,2]
[407659486,1772620246927,-1866.02,0.00011232,2]
[407659487,1772620246938,-500.0,0.00011232,2]
[407659488,1772620246947,-500.0,0.00011232,2]
[407659489,1772620246957,-500.0,0.00011232,2]
[407659490,1772620246966,-858.51,0.00011232,2]
[407659491,1772620246975,-2734.11,0.00011232,2]
[407659492,1772620246985,-1825.1,0.00011232,2]
[407659493,1772620246994,-500.0,0.00011232,2]
[407659494,1772620247003,-500.0,0.00011232,2]
[407659495,1772620247014,-500.0,0.00011232,2]
[407659496,1772620247023,-500.0,0.00011232,2]
[407659497,1772620247032,-4008.77,0.00011232,2]
[407659498,1772620247042,-818.52,0.00011232,2]
[407659499,1772620247051,-500.0,0.00011232,2]
[407659500,1772620247060,-630.16,0.00011232,2]
[407659501,1772620247070,-2728.16,0.00011232,2]
[407659502,1772620247079,-645.56,0.00011232,2]
[407659503,1772620247089,-500.0,0.00011232,2]
[407659504,1772620247099,-500.0,0.00011232,2]
[407659505,1772620247108,-611.69,0.00011232,2]
[407659506,1772620247117,-4342.98,0.00011232,2]
[407659507,1772620247127,-779.63,0.00011232,2]
[407659508,1772620247136,-999.67,0.00011232,2]
[407659509,1772620247146,-500.0,0.00011232,2]
[407659510,1772620247156,-500.0,0.00011232,2]
[407659511,1772620247165,-2318.52,0.00011232,2]
[407659512,1772620247174,-676.96,0.00011232,2]
[407659513,1772620247183,-500.0,0.00011232,2]
[407659514,1772620247192,-1150.73,0.00011232,2]
[407659515,1772620247202,-724.49,0.00011232,2]
[407659516,1772620247211,-1731.9,0.00011232,2]
[407659517,1772620247221,-619.34220904,0.00011232,2]
[407659518,1772620247231,-500.0,0.00011232,2]
[407659519,1772620247240,-2077.37,0.00011232,2]
[407659520,1772620247249,-500.0,0.00011232,2]
[407659521,1772620247259,-500.0,0.00011232,2]
[407659522,1772620247268,-500.0,0.00011232,2]
[407659523,1772620247278,-1235.11,0.00011232,2]
[407659524,1772620247287,-500.0,0.00011232,2]
[407659525,1772620247296,-537.86,0.00011232,2]
[407659526,1772620247306,-500.0,0.00011232,2]
[407659527,1772620247316,-500.0,0.00011232,2]
[407659528,1772620247325,-500.0,0.00011232,2]
[407659529,1772620247334,-563.34,0.00011232,2]
[407659530,1772620247343,-1422.67,0.00011232,2]
[407659531,1772620247353,-500.0,0.00011232,2]
[407659532,1772620247362,-500.0,0.00011232,2]
[407659533,1772620247372,-1137.97,0.00011232,2]
[407659534,1772620247381,-500.0,0.00011232,2]
[407659535,1772620247390,-392.69484771,0.00011232,2]
[407659536,1772620247400,-950.24,0.00011232,2]
[407659537,1772620247409,-3089.03,0.00011232,2]
[407659538,1772620247418,-685.13,0.00011232,2]
[407659539,1772620247429,-2095.01,0.00011232,2]
[407659540,1772620247439,-500.0,0.00011232,2]
[407659541,1772620247448,-1361.82,0.00011232,2]
[407659542,1772620247458,-500.0,0.00011232,2]
[407659543,1772620247467,-500.0,0.00011232,2]
[407659544,1772620247476,-687.01,0.00011232,2]
[407659545,1772620247486,-500.0,0.00011232,2]
[407659546,1772620247495,-500.0,0.00011232,2]
[407659547,1772620247505,-500.0,0.00011232,2]
[407659548,1772620247515,-654.38,0.00011232,2]
[407659549,1772620247524,-500.0,0.00011232,2]
[407659550,1772620247534,-500.0,0.00011232,2]
[407659551,1772620247543,-860.72,0.00011232,2]
[407659552,1772620247552,-1128.83,0.00011232,2]
[407659553,1772620247562,-500.0,0.00011232,2]
[407659554,1772620247572,-500.0,0.00011232,2]
[407659555,1772620247581,-6127.26,0.00011232,2]
[407659556,1772620247591,-500.0,0.00011232,2]
[407659557,1772620247600,-2043.3,0.00011232,2]
[407659558,1772620247612,-500.0,0.00011232,2]
[407659559,1772620247622,-902.6,0.00011232,2]
[407659560,1772620247632,-1149.42,0.00011232,2]
[407659561,1772620247642,-2074.91,0.00011232,2]
[407659562,1772620247653,-1119.26,0.00011232,2]
[407659563,1772620247663,-500.0,0.00011232,2]
[407659564,1772620247672,-500.0,0.00011232,2]
[407659565,1772620247682,-1059.6,0.00011232,2]
[407659566,1772620247691,-649.15,0.00011232,2]
[407659567,1772620247701,-4900.17,0.00011232,2]
[407659568,1772620247712,-508.62,0.00011232,2]
[407659569,1772620247795,-1093.21,0.00011232,2]
[407659570,1772620247804,-484.39324234,0.00011232,2]
[407659571,1772620247814,-500.0,0.00011232,2]
[407659572,1772620247823,-500.0,0.00011232,2]
[407659573,1772620247832,-500.0,0.00011232,2]
[407659574,1772620247841,-500.0,0.00011232,2]
[407659575,1772620247850,-500.0,0.00011232,2]
[407659576,1772620247860,-506.37,0.00011232,2]
[407659577,1772620247869,-1126.44,0.00011232,2]
[407659578,1772620247879,-500.0,0.00011232,2]
[407659579,1772620247888,-500.0,0.00011232,2]
[407659580,1772620247897,-2334.52,0.00011232,2]
[407659581,1772620247907,-6528.51,0.00011232,2]
[407659582,1772620247915,-653.39,0.00011232,2]
[407659583,1772620247925,-517.68,0.00011232,2]
[407659584,1772620247933,-500.0,0.00011232,2]
[407659585,1772620247943,-1336.85,0.00011232,2]
[407659586,1772620247952,-906.33,0.00011232,2]
[407659587,1772620247960,-500.0,0.00011232,2]
[407659588,1772620247970,-806.74,0.00011232,2]
[407659589,1772620247979,-500.0,0.00011232,2]
[407659590,1772620247989,-795.86,0.00011232,2]
[407659591,1772620247998,-500.0,0.00011232,2]
[407659592,1772620248010,-1074.28,0.00011232,2]
[407659593,1772620248019,-500.0,0.00011232,2]
[407659594,1772620248028,-500.0,0.00011232,2]
[407659595,1772620248038,-2607.47,0.00011232,2]
[407659596,1772620248047,-514.92,0.00011232,2]
[407659597,1772620248057,-500.0,0.00011232,2]
[407659598,1772620248068,-856.85,0.00011232,2]
[407659599,1772620248077,-500.0,0.00011232,2]
[407659600,1772620248087,-500.0,0.00011232,2]
[407659601,1772620248096,-1708.11,0.00011232,2]
[407659602,1772620248106,-2121.57,0.00011232,2]
[407659603,1772620248116,-500.0,0.00011232,2]
[407659604,1772620248126,-500.0,0.00011232,2]
[407659605,1772620248135,-500.0,0.00011232,2]
[407659606,1772620248144,-1008.0,0.00011232,2]
[407659607,1772620248153,-500.0,0.00011232,2]
[407659608,1772620248162,-500.0,0.00011232,2]
[407659609,1772620248172,-500.0,0.00011232,2]
[407659610,1772620248181,-500.0,0.00011232,2]
[407659611,1772620248192,-572.60884274,0.00011232,2]
[407659612,1772620248202,-782.28,0.00011232,2]
[407659613,1772620248213,-988.34,0.00011232,2]
[407659614,1772620248222,-648.22,0.00011232,2]
[407659615,1772620248231,-500.0,0.00011232,2]
[407659616,1772620248240,-917.44,0.00011232,2]
[407659617,1772620248250,-642.81,0.00011232,2]
[407659618,1772620248259,-909.54,0.00011232,2]
[407659619,1772620248268,-500.0,0.00011232,2]
[407659620,1772620248277,-983.89,0.00011232,2]
[407659621,1772620248287,-849.98,0.00011232,2]
[407659622,1772620248296,-812.24,0.00011232,2]
[407659623,1772620248305,-6979.76,0.00011232,2]
[407659624,1772620248315,-3700.39,0.00011232,2]
[407659625,1772620248325,-500.0,0.00011232,2]
[407659626,1772620248335,-3456.84,0.00011232,2]
[407659627,1772620248344,-1593.22,0.00011232,2]
[407659628,1772620248354,-1413.3,0.00011232,2]
[407659629,1772620248364,-500.0,0.00011232,2]
[407659630,1772620248373,-2440.44,0.00011232,2]
[407659631,1772620248383,-609.86,0.00011232,2]
[407659632,1772620248392,-1354.24,0.00011232,2]
[407659633,1772620248402,-500.0,0.00011232,2]
[407659634,1772620248411,-500.0,0.00011232,2]
[407659635,1772620248421,-2657.37,0.00011232,2]
[407659636,1772620248430,-1000.0,0.00011232,2]
[407659637,1772620248439,-500.0,0.00011232,2]
[407659638,1772620248449,-1477.58,0.00011232,2]
[407659639,1772620248458,-3216.54,0.00011232,2]
[407659640,1772620248468,-500.0,0.00011232,2]
[407659641,1772620248478,-603.06,0.00011232,2]
[407659642,1772620248488,-1174.89,0.00011232,2]
[407659643,1772620248498,-500.0,0.00011232,2]
[407659644,1772620248507,-500.0,0.00011232,2]
[407659645,1772620248516,-8842.56,0.00011232,2]
[407659646,1772620248525,-500.0,0.00011232,2]
[407659647,1772620248534,-500.0,0.00011232,2]
[407659648,1772620248544,-500.0,0.00011232,2]
[407659649,1772620248554,-500.0,0.00011232,2]
[407659650,1772620248564,-500.0,0.00011232,2]
[407659651,1772620248573,-870.36,0.00011232,2]
[407659652,1772620248583,-3744.42,0.00011232,2]
[407659653,1772620248592,-500.0,0.00011232,2]
[407659654,1772620248602,-500.0,0.00011232,2]
[407659655,1772620248612,-500.0,0.00011232,2]
[407659656,1772620248622,-1589.26,0.00011232,2]
[407659657,1772620248631,-500.0,0.00011232,2]
[407659658,1772620248644,-2504.14,0.00011232,2]
[407659659,1772620248654,-500.0,0.00011232,2]
[407659660,1772620248664,-500.0,0.00011232,2]
[407659661,1772620248674,-500.0,0.00011232,2]
[407659662,1772620248683,-659.61,0.00011232,2]
[407659663,1772620248692,-1291.54,0.00011232,2]
[407659664,1772620248701,-500.0,0.00011232,2]
[407659665,1772620248711,-500.0,0.00011232,2]
[407659666,1772620248720,-1519.4,0.00011232,2]
[407659667,1772620248730,-500.0,0.00011232,2]
[407659668,1772620248739,-500.0,0.00011232,2]
[407659669,1772620248749,-579.45413007,0.00011232,2]
[407659670,1772620248758,-500.0,0.00011232,2]
[407659671,1772620248767,-2242.79,0.00011232,2]
[407659672,1772620248777,-500.0,0.00011232,2]
[407659673,1772620248786,-500.0,0.00011232,2]
[407659674,1772620248796,-500.0,0.00011232,2]
[407659675,1772620248806,-500.0,0.00011232,2]
[407659676,1772620248815,-500.0,0.00011232,2]
[407659677,1772620248824,-2465.77,0.00011232,2]
[407659678,1772620248834,-500.0,0.00011232,2]
[407659679,1772620248844,-500.0,0.00011232,2]
[407659680,1772620248854,-1083.02,0.00011232,2]
[407659681,1772620248864,-3929.97,0.00011232,2]
[407659682,1772620248874,-2974.38,0.00011232,2]
[407659683,1772620248884,-500.0,0.00011232,2]
[407659684,1772620248893,-14947.03,0.00011232,2]
[407659685,1772620248902,-500.0,0.00011232,2]
[407659686,1772620248911,-500.0,0.00011232,2]
[407659687,1772620248920,-1934.26,0.00011232,2]
[407659688,1772620248929,-500.0,0.00011232,2]
[407659689,1772620248939,-500.0,0.00011232,2]
[407659690,1772620248948,-500.0,0.00011232,2]
[407659691,1772620248957,-546.08130856,0.00011232,2]
[407659692,1772620248966,-500.0,0.00011232,2]
[407659693,1772620248975,-4477.37,0.00011232,2]
[407659694,1772620248984,-500.0,0.00011232,2]
[407659695,1772620248993,-500.0,0.00011232,2]
[407659696,1772620249003,-500.0,0.00011232,2]
[407659697,1772620249012,-500.0,0.00011232,2]
[407659698,1772620249022,-17034.88,0.00011232,2]
[407659699,1772620249031,-500.0,0.00011232,2]
[407659700,1772620249041,-738.01,0.00011232,2]
[407659701,1772620249050,-500.0,0.00011232,2]
[407659702,1772620249059,-991.24,0.00011232,2]
[407659703,1772620249068,-500.0,0.00011232,2]
[407659704,1772620249078,-500.0,0.00011232,2]
[407659705,1772620249087,-3518.05,0.00011232,2]
[407659706,1772620249096,-1730.31,0.00011232,2]
[407659707,1772620249106,-711.24,0.00011232,2]
[407659708,1772620249115,-500.0,0.00011232,2]
[407659709,1772620249125,-500.0,0.00011232,2]
[407659710,1772620249134,-736.9,0.00011232,2]
[407659711,1772620249144,-851.01,0.00011232,2]
[407659712,1772620249153,-500.0,0.00011232,2]
[407659713,1772620249162,-618.06,0.00011232,2]
[407659714,1772620249172,-697.8,0.00011232,2]
[407659715,1772620249181,-681.2,0.00011232,2]
[407659716,1772620249190,-6120.15,0.00011232,2]
[407659717,1772620249200,-500.0,0.00011232,2]
[407659718,1772620249209,-6504.46,0.00011232,2]
[407659719,1772620249219,-2978.2,0.00011232,2]
[407659720,1772620249227,-818.31,0.00011232,2]
[407659721,1772620249237,-1942.39,0.00011232,2]
[407659722,1772620249246,-500.0,0.00011232,2]
[407659723,1772620249256,-1128.02,0.00011232,2]
[407659724,1772620249266,-500.0,0.00011232,2]
[407659725,1772620249277,-500.0,0.00011232,2]
[407659726,1772620249288,-500.0,0.00011232,2]
[407659727,1772620249299,-500.0,0.00011232,2]
[407659728,1772620249309,-528.51,0.00011232,2]
[407659729,1772620249321,-500.0,0.00011232,2]
[407659730,1772620249333,-3614.51,0.00011232,2]
[407659731,1772620249344,-2157.07,0.00011232,2]
[407659732,1772620249358,-583.78,0.00011232,2]
[407659733,1772620249370,-643.03,0.00011232,2]
[407659734,1772620249380,-212.26826798,0.00011232,2]
[407659735,1772620249391,-568.36,0.00011232,2]
[407659736,1772620249402,-3042.17,0.00011232,2]
[407659737,1772620249412,-963.94,0.00011232,2]
[407659738,1772620249423,-8517.67,0.00011232,2]
[407659739,1772620249434,-2049.69,0.00011232,2]
[407659740,1772620249444,-3203.22,0.00011232,2]
[407659741,1772620249453,-500.0,0.00011232,2]
[407659742,1772620249463,-500.0,0.00011232,2]
[407659743,1772620249473,-805.44,0.00011232,2]
[407659744,1772620249483,-500.0,0.00011232,2]
[407659745,1772620249492,-721.73,0.00011232,2]
[407659746,1772620249502,-682.7,0.00011232,2]
[407659747,1772620249512,-761.35,0.00011232,2]
[407659748,1772620249522,-500.0,0.00011232,2]
[407659749,1772620249532,-881.51,0.00011232,2]
[407659750,1772620249542,-500.0,0.00011232,2]
[407659751,1772620249551,-43254.37,0.00011232,2]
[407659752,1772620249561,-1006.15,0.00011232,2]
[407659753,1772620249571,-1533.52,0.00011232,2]
[407659754,1772620249580,-500.0,0.00011232,2]
[407659755,1772620249590,-1670.68,0.00011232,2]
[407659756,1772620249599,-362.64189634,0.00011232,2]
[407659757,1772620249613,-5414.61,0.00011232,2]
[407659758,1772620249624,-517.42,0.00011232,2]
[407659759,1772620249635,-500.0,0.00011232,2]
[407659760,1772620249647,-2704.89,0.00011232,2]
[407659761,1772620249659,-500.0,0.00011232,2]
[407659762,1772620249668,-2376.05,0.00011232,2]
[407659763,1772620249678,-500.0,0.00011232,2]
[407659764,1772620249688,-500.0,0.00011232,2]
[407659765,1772620249698,-2347.36,0.00011232,2]
[407659766,1772620249707,-971.31106615,0.00011232,2]
[407659767,1772620250199,-770.21893385,0.00011232,2]
[407659768,1772620250210,-500.0,0.00011232,2]
[407659769,1772620250220,-5140.96,0.00011232,2]
[407659770,1772620250231,-2987.16,0.00011232,2]
[407659771,1772620250242,-1254.80131075,0.00011232,2]
[407659772,1772620250903,-1104.62856212,0.00010306,2]
[407659773,1772620251950,-49.13684406,0.00010306,2]
[407659774,1772620251965,-3821.59852601,0.00010306,2]
[407659775,1772620251975,-1507.6,0.00010958,2]
[407659776,1772620251984,-725.51,0.00010958,2]
[407659777,1772620251995,-6257.01386693,0.00011085,2]
[407659778,1772620252006,-10700.24868925,0.00011232,2]
[407659779,1772620252015,-500.0,0.00011232,2]
[407659780,1772620252025,-500.0,0.00011232,2]
[407659781,1772620252035,-500.0,0.00011232,2]
[407659782,1772620252045,-2220.73,0.00011232,2]
[407659783,1772620252055,-500.0,0.00011232,2]
[407659784,1772620252065,-806.99,0.00011232,2]
[407659785,1772620252074,-998.03,0.00011232,2]
[407659786,1772620252084,-7516.38,0.00011232,2]
[407659787,1772620252101,-869.71,0.00011232,2]
[407659788,1772620252112,-500.0,0.00011232,2]
[407659789,1772620252121,-500.0,0.00011232,2]
[407659790,1772620252142,-5744.43,0.00011232,2]
[407659791,1772620252151,-3412.85,0.00011232,2]
[407659792,1772620252160,-3077.33,0.00011232,2]
[407659793,1772620252170,-10170.9750866,0.00011232,2]
[407659794,1772620252887,-693.25,0.00010958,2]
[407659795,1772620252898,-737.43,0.00011232,2]
[407659796,1772620252911,-530.8049134,0.00011232,2]
[407659797,1772620252921,-912.59,0.00011232,2]
[407659798,1772620252931,-4451.08,0.00011232,2]
[407659799,1772620252940,-1920.59,0.00011232,2]
[407659800,1772620252950,-617.0622257,0.00011232,2]
[407659801,1772620252961,-1361.06,0.00011232,2]
[407659802,1772620252970,-500.0,0.00011232,2]
[407659803,1772620252980,-1199.93,0.00011232,2]
[407659804,1772620252990,-5393.11,0.00011232,2]
[407659805,1772620253005,-2847.02,0.00011232,2]
[407659806,1772620253016,-628.61,0.00011232,2]
[407659807,1772620253026,-5740.8129161,0.00011232,2]
[407659808,1772620253039,-1428.5791,0.00011232,2]
[407659809,1772620313676,-203.79913577,9.818e-05,2]
[407659810,1772620313718,-228.322,0.00010593,2]